[Event "2nd Guotai Cup Belt Road 2019"]
[Site "Qinhuangdao"]
[Date "2019.04.24"]
[Round "8.3"]
[White "Zvjaginsev, Vadim"]
[Black "Yilmaz, Mustafa"]
[Result "1/2-1/2"]
[ECO "A06"]
[WhiteElo "2641"]
[BlackElo "2631"]
[Annotator "ChessBase"]
[PlyCount "45"]
[EventDate "2019.04.16"]
[EventType "swiss"]
[EventCountry "CHN"]
[SourceTitle "playchess.com"]
[Source "ChessBase"]
[SourceQuality "1"]
[TimeControl "5400+30"]

1. Nf3 {[%emt 0:01:03]} d5 {[%emt 0:00:00]} 2. b3 {[%emt 0:00:06]} c5 {[%emt 0:01:21]} 3. e3 {[%emt 0:00:08]} Nf6 {[%emt 0:01:18]} 4. Bb2 {[%emt 0:00:21]} Nc6 {[%emt 0:00:36]} 5. Bb5 {[%emt 0:00:30]} Bd7 {[%emt 0:00:24]} 6. O-O {[%emt 0:00:57]} e6 {[%emt 0:00:17]} 7. Re1 {[%emt 0:04:15]} Be7 {[%emt 0:04:07]} 8. d4 {[%emt 0:02:51]} O-O {[%emt 0:04:11]} 9. dxc5 {[%emt 0:03:13]} Bxc5 {[%emt 0:01:36]} 10. Nbd2 {[%emt 0:00:32]} Qe7 {[%emt 0:05:38]} 11. a3 {[%emt 0:09:15]} a6 {[%emt 0:06:14]} 12. Bd3 {[%emt 0:03:45]} Ba7 {[%emt 0:20:09]} 13. c4 {[%emt 0:03:04]} dxc4 {[%emt 0:01:28]} 14. Nxc4 {[%emt 0:02:57]} Rfd8 {[%emt 0:00:26]} 15. Qe2 {[%emt 0:12:51]} Rac8 {[%emt 0:02:10]} 16. Rac1 {[%emt 0:02:01]} Be8 {[%emt 0:01:58]} 17. Bb1 {[%emt 0:02:00]} b5 {[%emt 0:03:05]} 18. Ncd2 {[%emt 0:00:35]} Bb8 {[%emt 0:05:51]} 19. g3 {[%emt 0:04:20]} Bd6 {[%emt 0:04:29]} 20. b4 {[%emt 0:00:33]} a5 {[%emt 0:02:21]} 21. Bxf6 {[%emt 0:05:15]} gxf6 {[%emt 0:02:05]} 22. Qxb5 {[%emt 0:02:41]} axb4 {[%emt 0:02:28]} 23. axb4 {[%emt 0:05:25]} 1/2-1/2

[Event "2nd Guotai Cup Belt Road 2019"]
[Site "Qinhuangdao"]
[Date "2019.04.24"]
[Round "8.4"]
[White "Lu, Shanglei"]
[Black "Dai, Changren"]
[Result "1-0"]
[ECO "C91"]
[WhiteElo "2625"]
[BlackElo "2472"]
[Annotator "ChessBase"]
[PlyCount "67"]
[EventDate "2019.04.16"]
[EventType "swiss"]
[EventCountry "CHN"]
[SourceTitle "playchess.com"]
[Source "ChessBase"]
[SourceQuality "1"]
[TimeControl "5400+30"]

1. e4 {[%emt 0:00:00]} e5 {[%emt 0:00:00]} 2. Nf3 {[%emt 0:00:47]} Nc6 {[%emt 0:00:00]} 3. Bb5 {[%emt 0:00:04]} a6 {[%emt 0:00:00]} 4. Ba4 {[%emt 0:00:03]} Nf6 {[%emt 0:00:00]} 5. O-O {[%emt 0:00:03]} Be7 {[%emt 0:00:03]} 6. Re1 {[%emt 0:00:03]} b5 {[%emt 0:00:05]} 7. Bb3 {[%emt 0:00:04]} O-O {[%emt 0:00:05]} 8. d4 {[%emt 0:00:05]} d6 {[%emt 0:00:07]} 9. c3 {[%emt 0:00:05]} Bg4 {[%emt 0:00:04]} 10. Be3 {[%emt 0:00:45]} exd4 {[%emt 0:01:38]} 11. cxd4 {[%emt 0:00:26]} Na5 {[%emt 0:00:02]} 12. Bc2 {[%emt 0:00:07]} c5 {[%emt 0:00:04]} 13. h3 {[%emt 0:00:04]} Bh5 {[%emt 0:00:04]} 14. g4 {[%emt 0:00:05]} Bg6 {[%emt 0:00:05]} 15. Nbd2 {[%emt 0:00:02]} Nd7 {[%emt 0:01:30]} 16. Qe2 {[%emt 0:00:42]} Re8 {[%emt 0:05:57]} 17. a4 {[%emt 0:06:20]} c4 {[%emt 0:11:10]} 18. axb5 {[%emt 0:03:51]} axb5 {[%emt 0:00:08]} 19. d5 {[%emt 0:00:06]} Nc5 {[%emt 0:16:11]} 20. Nd4 {[%emt 0:02:05]} Bf6 {[%emt 0:07:39]} 21. f3 {[%emt 0:04:51]} Qb6 {[%emt 0:07:47]} 22. g5 {[%emt 0:11:33]} Bxd4 {[%emt 0:12:24]} 23. Bxd4 {[%emt 0:00:27]} Qc7 {[%emt 0:01:33]} 24. f4 {[%emt 0:05:23]} b4 {[%emt 0:07:26]} 25. Qf3 {[%emt 0:03:25]} b3 {[%emt 0:02:50]} 26. Bb1 {[%emt 0:00:29]} Bf5 {[%emt 0:02:26]} 27. Qc3 {[%emt 0:03:18]} Bd7 {[%emt 0:03:12]} 28. Bxg7 {[%emt 0:00:15]} Na4 {[%emt 0:02:49]} 29. Rxa4 {[%emt 0:00:10]} Bxa4 {[%emt 0:00:05]} 30. Bh6 {[%emt 0:00:11]} f5 {[%emt 0:00:26]} 31. gxf6 {[%emt 0:00:04]} Kf7 {[%emt 0:01:35]} 32. Nf3 {[%emt 0:00:39]} Qc5+ {[%emt 0:00:40]} 33. Kf1 {[%emt 0:00:21]} Rg8 {[%emt 0:01:21]} 34. e5 {[%emt 0:00:43]} 1-0

[Event "2nd Guotai Cup Belt Road 2019"]
[Site "Qinhuangdao"]
[Date "2019.04.24"]
[Round "8.5"]
[White "Oleksiyenko, Mykhaylo"]
[Black "Oparin, Grigoriy"]
[Result "1/2-1/2"]
[ECO "C95"]
[WhiteElo "2598"]
[BlackElo "2624"]
[Annotator "RC"]
[PlyCount "100"]
[EventDate "2019.04.16"]
[EventType "swiss"]
[EventCountry "CHN"]
[SourceTitle "playchess.com"]
[Source "ChessBase"]
[SourceQuality "1"]
[TimeControl "5400+30"]

1. e4 {[%emt 0:00:00]} e5 {[%emt 0:01:20]} 2. Nf3 {[%emt 0:00:00]} Nc6 {[%emt 0:00:05]} 3. Bb5 {[%emt 0:00:00]} a6 {[%emt 0:00:03]} 4. Ba4 {[%emt 0:00:00]} Nf6 {[%emt 0:00:06]} 5. O-O {[%emt 0:00:00]} Be7 {[%emt 0:00:05]} 6. Re1 {[%emt 0:00:00]} b5 {[%emt 0:00:05]} 7. Bb3 {[%emt 0:00:00]} d6 {[%emt 0:00:06]} 8. c3 {[%emt 0:00:05]} O-O {[%emt 0:00:07]} 9. h3 {[%emt 0:00:05]} Nb8 {[%emt 0:00:07]} 10. d4 {[%emt 0:00:04]} Nbd7 {[%emt 0:00:05]} 11. Nbd2 {[%emt 0:00:03]} Bb7 {[%emt 0:00:05]} 12. Bc2 {[%emt 0:00:30]} Re8 {[%emt 0:00:08]} 13. Nf1 {[%emt 0:00:09]} Bf8 {[%emt 0:00:09]} 14. Ng3 {[%emt 0:00:04]} g6 {[%emt 0:00:08]} 15. a4 {[%emt 0:00:29]} Nb6 {[%emt 0:01:10]} 16. b3 {[%emt 0:07:29]} bxa4 {[%emt 0:00:52]} 17. bxa4 {[%emt 0:00:15]} a5 {[%emt 0:00:04]} 18. Bd3 {[%emt 0:03:58]} Bg7 {[%emt 0:08:42]} 19. Rb1 {[%emt 0:04:15]} Rb8 {[%emt 0:10:48]} 20. Bb5 {[%emt 0:02:56]} c6 {[%emt 0:11:08]} 21. Bf1 {[%emt 0:00:04]} Qc7 {[%emt 0:00:22]} 22. Ba3 {[%emt 0:05:18]} Red8 {[%emt 0:12:47]} 23. Qc2 {[%emt 0:02:05]} Nfd7 {[%emt 0:00:52]} 24. Rbd1 {[%emt 0:09:30]} c5 {[%emt 0:03:34]} 25. dxe5 {[%emt 0:10:20]} Nxe5 {[%emt 0:00:22]} 26. Nxe5 {[%emt 0:00:12]} Bxe5 {[%emt 0:00:12]} 27. Bb5 {[%emt 0:01:51]} d5 {[%emt 0:26:04]} 28. exd5 {[%emt 0:04:58]} Nxd5 {[%emt 0:00:04]} 29. Ne4 {[%emt 0:01:57]} Nf4 {[%emt 0:00:24]} 30. Bc1 {[%emt 0:18:18]} Nxg2 {[%emt 0:02:39]} 31. Kxg2 {[%emt 0:01:52]} f5 {[%emt 0:00:04]} 32. f3 {[%emt 0:01:34]} fxe4 {[%emt 0:00:21]} 33. fxe4 {[%emt 0:00:11]} Qe7 {[%emt 0:02:12]} 34. Bc4+ {[%emt 0:03:21]} Kh8 {[%emt 0:02:00]} 35. Bd5 {[%emt 0:00:09]} Qh4 {[%emt 0:02:03]} 36. Re3 {[%emt 0:08:09]} Rf8 {[%emt 0:04:25]} 37. Qe2 {[%emt 0:04:08]} Qf4 {[%emt 0:01:54]} 38. Kh1 {[%emt 0:01:44]} Ba6 {[%emt 0:01:53]} 39. c4 {[%emt 0:04:14]} Rb1 {[%emt 0:00:22]} 40. Rc3 {[%emt 0:00:14]} Qf6 {[%emt 0:04:09]} 41. Rcd3 {[%emt 0:00:23]} Bc8 {[%emt 0:02:54]} 42. Qg2 {[%emt 0:04:27]} Qh4 {[%emt 0:01:41]} 43. Bg5 {[%emt 0:00:34]} Rxd1+ {[%emt 0:00:18]} 44. Rxd1 {[%emt 0:00:02]} Qxh3+ {[%emt 0:01:31]} 45. Qxh3 {[%emt 0:00:06]} Bxh3 {[%emt 0:00:03]} 46. Be7 {[%emt 0:00:18]} Rf2 {[%emt 0:03:17]} 47. Bxc5 {[%emt 0:01:05]} Rh2+ {[%emt 0:00:05]} 48. Kg1 {[%emt 0:00:02]} Rg2+ {[%emt 0:00:03]} 49. Kh1 {[%emt 0:00:09]} Rh2+ {[%emt 0:01:38]} 50. Kg1 {[%emt 0:00:03]} Rg2+ {[%emt 0:00:08]} 1/2-1/2

[Event "2nd Guotai Cup Belt Road 2019"]
[Site "Qinhuangdao"]
[Date "2019.04.24"]
[Round "8.6"]
[White "Antipov, Mikhail Al."]
[Black "Chen, Qi b"]
[Result "1/2-1/2"]
[ECO "E06"]
[WhiteElo "2605"]
[BlackElo "2424"]
[Annotator "ChessBase"]
[PlyCount "65"]
[EventDate "2019.04.16"]
[EventType "swiss"]
[EventCountry "CHN"]
[SourceTitle "playchess.com"]
[Source "ChessBase"]
[SourceQuality "1"]
[TimeControl "5400+30"]

1. Nf3 {[%emt 0:00:00]} Nf6 {[%emt 0:00:00]} 2. c4 {[%emt 0:00:21]} e6 {[%emt 0:00:00]} 3. g3 {[%emt 0:00:06]} d5 {[%emt 0:00:18]} 4. Bg2 {[%emt 0:00:05]} Be7 {[%emt 0:01:07]} 5. d4 {[%emt 0:00:23]} O-O {[%emt 0:00:09]} 6. Nc3 {[%emt 0:00:07]} Nbd7 {[%emt 0:02:10]} 7. b3 {[%emt 0:10:39]} dxc4 {[%emt 0:13:59]} 8. bxc4 {[%emt 0:00:07]} c5 {[%emt 0:00:06]} 9. dxc5 {[%emt 0:21:45]} Nxc5 {[%emt 0:03:41]} 10. O-O {[%emt 0:01:10]} Bd7 {[%emt 0:11:07]} 11. Ne5 {[%emt 0:01:17]} Qa5 {[%emt 0:03:13]} 12. Bd2 {[%emt 0:12:12]} Qa6 {[%emt 0:01:30]} 13. Be3 {[%emt 0:10:20]} Rfd8 {[%emt 0:13:29]} 14. Rb1 {[%emt 0:05:13]} Bc6 {[%emt 0:06:17]} 15. Nxc6 {[%emt 0:00:54]} bxc6 {[%emt 0:00:07]} 16. Qc2 {[%emt 0:06:03]} Qxc4 {[%emt 0:02:26]} 17. Rfc1 {[%emt 0:01:56]} Qa6 {[%emt 0:05:58]} 18. Nb5 {[%emt 0:12:15]} Rac8 {[%emt 0:03:31]} 19. Nd4 {[%emt 0:02:30]} Nd5 {[%emt 0:10:40]} 20. Bd2 {[%emt 0:00:54]} Bf8 {[%emt 0:04:27]} 21. e3 {[%emt 0:02:30]} e5 {[%emt 0:03:41]} 22. Bf1 {[%emt 0:01:45]} Qa3 {[%emt 0:00:26]} 23. Nb3 {[%emt 0:00:18]} Na6 {[%emt 0:04:44]} 24. Qe4 {[%emt 0:03:06]} Nab4 {[%emt 0:01:05]} 25. Bc4 {[%emt 0:01:26]} Nb6 {[%emt 0:03:14]} 26. Bf1 {[%emt 0:04:36]} Nxa2 {[%emt 0:00:51]} 27. Rxc6 {[%emt 0:00:30]} Rxc6 {[%emt 0:02:47]} 28. Qxc6 {[%emt 0:00:01]} Qe7 {[%emt 0:00:55]} 29. Qe4 {[%emt 0:01:04]} Rxd2 {[%emt 0:00:37]} 30. Nxd2 {[%emt 0:00:33]} Nc3 {[%emt 0:00:15]} 31. Qc2 {[%emt 0:00:10]} Nxb1 {[%emt 0:00:04]} 32. Qxb1 {[%emt 0:00:04]} Qb4 {[%emt 0:00:38]} 33. Qa2 {[%emt 0:00:22]} 1/2-1/2

[Event "2nd Guotai Cup Belt Road 2019"]
[Site "Qinhuangdao"]
[Date "2019.04.24"]
[Round "8.7"]
[White "Wu, Wenjin"]
[Black "Zou, Chen"]
[Result "1-0"]
[ECO "A43"]
[WhiteElo "2345"]
[BlackElo "2397"]
[Annotator "NA"]
[PlyCount "73"]
[EventDate "2019.04.16"]
[EventType "swiss"]
[EventCountry "CHN"]
[SourceTitle "playchess.com"]
[Source "ChessBase"]
[SourceQuality "1"]
[TimeControl "5400+30"]

1. d4 {[%emt 0:02:27]} Nf6 {[%emt 0:00:00]} 2. Nf3 {[%emt 0:00:42]} c5 {[%emt 0:05:21]} 3. d5 {[%emt 0:01:10]} g6 {[%emt 0:00:21]} 4. Nc3 {[%emt 0:01:34]} d6 {[%emt 0:00:25]} 5. e4 {[%emt 0:00:39]} Bg7 {[%emt 0:00:06]} 6. h3 {[%emt 0:03:33]} O-O {[%emt 0:00:15]} 7. a4 {[%emt 0:00:06]} Na6 {[%emt 0:04:00]} 8. Bc4 {[%emt 0:08:06]} Nc7 {[%emt 0:05:06]} 9. O-O {[%emt 0:00:28]} Bd7 {[%emt 0:03:13]} 10. Re1 {[%emt 0:02:04]} Qc8 {[%emt 0:06:45]} 11. Bf4 {[%emt 0:05:06]} a6 {[%emt 0:09:06]} 12. e5 {[%emt 0:03:36]} dxe5 {[%emt 0:07:27]} 13. Nxe5 {[%emt 0:01:39]} Nce8 {[%emt 0:03:58]} 14. Bf1 {[%emt 0:04:25]} Nd6 {[%emt 0:03:36]} 15. Nxd7 {[%emt 0:14:39]} Qxd7 {[%emt 0:00:11]} 16. a5 {[%emt 0:00:03]} Nb5 {[%emt 0:03:20]} 17. Na4 {[%emt 0:00:57]} Qf5 {[%emt 0:00:04]} 18. Bg3 {[%emt 0:02:13]} Nh5 {[%emt 0:08:40]} 19. Bh4 {[%emt 0:00:46]} e6 {[%emt 0:04:40]} 20. dxe6 {[%emt 0:02:27]} fxe6 {[%emt 0:00:29]} 21. c3 {[%emt 0:00:32]} Bf6 {[%emt 0:06:09]} 22. Bd3 {[%emt 0:02:31]} Qf4 {[%emt 0:00:39]} 23. Re4 {[%emt 0:01:13]} Qc7 {[%emt 0:00:58]} 24. Bxf6 {[%emt 0:05:37]} Rxf6 {[%emt 0:00:06]} 25. Nb6 {[%emt 0:00:58]} Raf8 {[%emt 0:00:37]} 26. Qg4 {[%emt 0:16:52]} Ng7 {[%emt 0:11:43]} 27. Re2 {[%emt 0:03:25]} Nd6 {[%emt 0:05:46]} 28. Qa4 {[%emt 0:00:53]} R8f7 {[%emt 0:00:41]} 29. Rd1 {[%emt 0:00:23]} Rf4 {[%emt 0:00:36]} 30. Bc4 {[%emt 0:02:27]} Ne4 {[%emt 0:04:59]} 31. Bxe6 {[%emt 0:01:22]} Ng3 {[%emt 0:04:49]} 32. Bxf7+ {[%emt 0:00:55]} Kf8 {[%emt 0:00:11]} 33. Re8+ {[%emt 0:00:36]} Kxf7 {[%emt 0:00:15]} 34. Rd7+ {[%emt 0:00:14]} Kxe8 {[%emt 0:01:38]} 35. Rxc7+ {[%emt 0:00:03]} Rxa4 {[%emt 0:00:08]} 36. Nxa4 {[%emt 0:00:02]} Ne2+ {[%emt 0:00:27]} 37. Kf1 {[%emt 0:00:37]} 1-0

[Event "2nd Guotai Cup Belt Road 2019"]
[Site "Qinhuangdao"]
[Date "2019.04.24"]
[Round "8.8"]
[White "Karthik Venkataraman"]
[Black "Zhao, Chenxi"]
[Result "0-1"]
[ECO "A15"]
[WhiteElo "2505"]
[BlackElo "2367"]
[Annotator "ChessBase"]
[PlyCount "120"]
[EventDate "2019.04.16"]
[EventType "swiss"]
[EventCountry "CHN"]
[SourceTitle "playchess.com"]
[Source "ChessBase"]
[SourceQuality "1"]
[TimeControl "5400+30"]

1. c4 {[%emt 0:00:00]} Nf6 {[%emt 0:00:00]} 2. g3 {[%emt 0:00:00]} g6 {[%emt 0:00:00]} 3. Bg2 {[%emt 0:00:05]} Bg7 {[%emt 0:00:00]} 4. b3 {[%emt 0:01:01]} O-O {[%emt 0:00:00]} 5. Bb2 {[%emt 0:00:02]} c6 {[%emt 0:00:07]} 6. Nf3 {[%emt 0:00:05]} d6 {[%emt 0:00:15]} 7. O-O {[%emt 0:00:11]} e5 {[%emt 0:00:53]} 8. d3 {[%emt 0:00:06]} Re8 {[%emt 0:00:10]} 9. a3 {[%emt 0:00:57]} Nbd7 {[%emt 0:02:13]} 10. Nc3 {[%emt 0:00:07]} a6 {[%emt 0:01:23]} 11. Nd2 {[%emt 0:01:01]} Nf8 {[%emt 0:01:11]} 12. e4 {[%emt 0:00:34]} Ne6 {[%emt 0:01:59]} 13. Kh1 {[%emt 0:00:21]} Rb8 {[%emt 0:02:33]} 14. Ne2 {[%emt 0:01:52]} b5 {[%emt 0:01:50]} 15. Qc2 {[%emt 0:03:33]} Qb6 {[%emt 0:01:08]} 16. Rab1 {[%emt 0:05:28]} Bd7 {[%emt 0:02:10]} 17. h3 {[%emt 0:00:16]} c5 {[%emt 0:07:34]} 18. f4 {[%emt 0:00:55]} Nd4 {[%emt 0:00:06]} 19. Nxd4 {[%emt 0:00:36]} exd4 {[%emt 0:00:09]} 20. b4 {[%emt 0:01:01]} cxb4 {[%emt 0:06:55]} 21. axb4 {[%emt 0:00:15]} Rec8 {[%emt 0:00:42]} 22. Rfc1 {[%emt 0:03:58]} Be6 {[%emt 0:02:53]} 23. c5 {[%emt 0:01:22]} dxc5 {[%emt 0:01:44]} 24. bxc5 {[%emt 0:00:04]} Qc7 {[%emt 0:00:20]} 25. Bxd4 {[%emt 0:03:22]} Nxe4 {[%emt 0:01:24]} 26. Bxg7 {[%emt 0:18:30]} Nxg3+ {[%emt 0:00:08]} 27. Kh2 {[%emt 0:00:41]} Qxf4 {[%emt 0:00:08]} 28. Bh6 {[%emt 0:00:20]} Qc7 {[%emt 0:00:17]} 29. Kg1 {[%emt 0:04:48]} Ne2+ {[%emt 0:03:06]} 30. Kf1 {[%emt 0:00:54]} Ng3+ {[%emt 0:00:45]} 31. Kf2 {[%emt 0:08:17]} Nf5 {[%emt 0:00:17]} 32. Ne4 {[%emt 0:00:04]} Nxh6 {[%emt 0:00:13]} 33. Qb2 {[%emt 0:00:04]} Qf4+ {[%emt 0:04:22]} 34. Kg1 {[%emt 0:00:05]} Qe3+ {[%emt 0:02:35]} 35. Kh2 {[%emt 0:00:05]} Nf5 {[%emt 0:01:10]} 36. Qe5 {[%emt 0:01:40]} Qd4 {[%emt 0:00:32]} 37. Qxd4 {[%emt 0:02:40]} Nxd4 {[%emt 0:00:07]} 38. c6 {[%emt 0:00:06]} Kf8 {[%emt 0:02:39]} 39. Nc5 {[%emt 0:01:12]} Ke7 {[%emt 0:06:34]} 40. Nxa6 {[%emt 0:01:32]} Ra8 {[%emt 0:00:14]} 41. Nb4 {[%emt 0:00:07]} Ra4 {[%emt 0:00:40]} 42. Rc3 {[%emt 0:01:48]} Kd6 {[%emt 0:00:19]} 43. Nc2 {[%emt 0:00:58]} Nxc2 {[%emt 0:02:42]} 44. Rxc2 {[%emt 0:00:04]} b4 {[%emt 0:00:08]} 45. Kg3 {[%emt 0:01:48]} b3 {[%emt 0:00:15]} 46. Rc3 {[%emt 0:00:11]} Rb4 {[%emt 0:00:44]} 47. Rb2 {[%emt 0:00:42]} g5 {[%emt 0:02:51]} 48. Bf3 {[%emt 0:00:17]} f5 {[%emt 0:00:58]} 49. Bg2 {[%emt 0:00:19]} f4+ {[%emt 0:00:11]} 50. Kf2 {[%emt 0:00:07]} h5 {[%emt 0:00:20]} 51. Bf3 {[%emt 0:00:15]} g4 {[%emt 0:00:23]} 52. hxg4 {[%emt 0:00:06]} hxg4 {[%emt 0:00:03]} 53. Be4 {[%emt 0:00:06]} Rc7 {[%emt 0:03:34]} 54. Kg1 {[%emt 0:00:27]} Bd5 {[%emt 0:04:13]} 55. Bxd5 {[%emt 0:00:16]} Kxd5 {[%emt 0:00:03]} 56. Rbxb3 {[%emt 0:00:09]} Rxb3 {[%emt 0:00:07]} 57. Rxb3 {[%emt 0:00:06]} Rxc6 {[%emt 0:00:10]} 58. Rb4 {[%emt 0:00:20]} Rc1+ {[%emt 0:00:25]} 59. Kf2 {[%emt 0:00:34]} Rc2+ {[%emt 0:00:07]} 60. Kg1 {[%emt 0:00:08]} Ke5 {[%emt 0:00:16]} 0-1

[Event "2nd Guotai Cup Belt Road 2019"]
[Site "Qinhuangdao"]
[Date "2019.04.24"]
[Round "8.9"]
[White "Peng, Xiongjian"]
[Black "Li, Yunshan"]
[Result "1-0"]
[ECO "A39"]
[WhiteElo "2459"]
[BlackElo "2191"]
[Annotator "ChessBase"]
[PlyCount "95"]
[EventDate "2019.04.16"]
[EventType "swiss"]
[EventCountry "CHN"]
[SourceTitle "playchess.com"]
[Source "ChessBase"]
[SourceQuality "1"]
[TimeControl "5400+30"]

1. Nf3 {[%emt 0:00:09]} Nf6 {[%emt 0:00:00]} 2. c4 {[%emt 0:00:08]} c5 {[%emt 0:00:08]} 3. g3 {[%emt 0:01:13]} g6 {[%emt 0:01:12]} 4. Bg2 {[%emt 0:00:12]} Bg7 {[%emt 0:00:04]} 5. d4 {[%emt 0:00:33]} cxd4 {[%emt 0:03:57]} 6. Nxd4 {[%emt 0:00:07]} O-O {[%emt 0:06:00]} 7. Nc3 {[%emt 0:00:14]} Nc6 {[%emt 0:02:23]} 8. O-O {[%emt 0:00:19]} a6 {[%emt 0:01:11]} 9. e3 {[%emt 0:03:25]} Rb8 {[%emt 0:02:51]} 10. a4 {[%emt 0:00:17]} Qc7 {[%emt 0:10:38]} 11. b3 {[%emt 0:01:26]} d6 {[%emt 0:03:40]} 12. Bd2 {[%emt 0:06:35]} Bd7 {[%emt 0:00:49]} 13. a5 {[%emt 0:09:09]} b6 {[%emt 0:17:34]} 14. axb6 {[%emt 0:00:34]} Qxb6 {[%emt 0:03:23]} 15. Nce2 {[%emt 0:00:10]} Nxd4 {[%emt 0:03:19]} 16. Nxd4 {[%emt 0:00:38]} e5 {[%emt 0:01:12]} 17. Ba5 {[%emt 0:02:07]} Qc5 {[%emt 0:00:34]} 18. b4 {[%emt 0:04:45]} Qc8 {[%emt 0:02:50]} 19. Nf3 {[%emt 0:01:50]} e4 {[%emt 0:02:40]} 20. Nd2 {[%emt 0:02:13]} Bg4 {[%emt 0:02:30]} 21. Qc2 {[%emt 0:04:06]} Be2 {[%emt 0:00:19]} 22. Nxe4 {[%emt 0:03:46]} Bxf1 {[%emt 0:01:00]} 23. Nxf6+ {[%emt 0:01:59]} Bxf6 {[%emt 0:00:04]} 24. Rxf1 {[%emt 0:00:04]} Bd8 {[%emt 0:02:58]} 25. Rd1 {[%emt 0:01:49]} Bxa5 {[%emt 0:00:19]} 26. bxa5 {[%emt 0:00:06]} Qc7 {[%emt 0:00:22]} 27. Qc3 {[%emt 0:03:07]} Rb5 {[%emt 0:02:05]} 28. h4 {[%emt 0:03:07]} Qxa5 {[%emt 0:10:42]} 29. Qd4 {[%emt 0:12:01]} Rb4 {[%emt 0:05:29]} 30. Bd5 {[%emt 0:00:29]} Qb6 {[%emt 0:00:20]} 31. Qf6 {[%emt 0:01:06]} Rb1 {[%emt 0:04:30]} 32. Rxb1 {[%emt 0:00:06]} Qxb1+ {[%emt 0:00:01]} 33. Kg2 {[%emt 0:00:06]} a5 {[%emt 0:02:55]} 34. Qxd6 {[%emt 0:02:57]} a4 {[%emt 0:01:49]} 35. Qa6 {[%emt 0:03:08]} Qb3 {[%emt 0:02:22]} 36. e4 {[%emt 0:01:02]} Qb4 {[%emt 0:03:11]} 37. Qa7 {[%emt 0:00:33]} a3 {[%emt 0:01:34]} 38. c5 {[%emt 0:00:09]} a2 {[%emt 0:01:12]} 39. c6 {[%emt 0:02:36]} Qb2 {[%emt 0:00:37]} 40. Bxa2 {[%emt 0:00:33]} Qe5 {[%emt 0:00:23]} 41. Bd5 {[%emt 0:00:20]} Kg7 {[%emt 0:00:47]} 42. Qd7 {[%emt 0:00:12]} Qe8 {[%emt 0:00:21]} 43. Qd6 {[%emt 0:00:38]} Qd8 {[%emt 0:00:13]} 44. e5 {[%emt 0:00:13]} Qc8 {[%emt 0:00:56]} 45. c7 {[%emt 0:01:17]} h5 {[%emt 0:00:31]} 46. Qf6+ {[%emt 0:00:56]} Kh7 {[%emt 0:00:29]} 47. Bxf7 {[%emt 0:00:44]} Qb7+ {[%emt 0:00:30]} 48. Kh2 {[%emt 0:00:16]} 1-0